bitfinex/quotes_BTCUSD_20240723
["timestamp","ask_amount","ask_price","bid_price","bid_amount"]
[1721772303261,0.30574,66025.0,66024.0,2.76280314]
[1721772303385,0.30574,66025.0,66024.0,2.81582491]
[1721772303792,0.30574,66025.0,66024.0,2.71582491]
[1721772303993,0.30574,66025.0,66024.0,2.81582491]
[1721772304195,0.30574,66025.0,66024.0,2.6252221]
[1721772304404,0.30574,66025.0,66024.0,2.7252221]
[1721772304664,0.30574,66025.0,66024.0,2.3223021]
[1721772304802,0.30574,66025.0,66024.0,1.81274089]
[1721772305000,0.30574,66025.0,66024.0,2.14864122]
[1721772305239,0.30574,66025.0,66024.0,2.08061762]
[1721772305999,0.30574,66025.0,66024.0,3.3224935]
[1721772306000,0.241977,66025.0,66024.0,3.3224935]
[1721772306207,0.01054,66029.0,66028.0,0.807252]
[1721772306412,0.01054,66029.0,66028.0,2.04485149]
[1721772306633,0.01054,66029.0,66028.0,1.94686282]
[1721772306843,0.01054,66029.0,66028.0,1.6382949]
[1721772307044,0.01054,66029.0,66028.0,2.47465309]
[1721772307190,0.01054,66029.0,66028.0,2.66332536]
[1721772307391,0.01054,66029.0,66028.0,2.66532536]
[1721772307747,0.01054,66029.0,66028.0,2.12389196]
[1721772307854,0.01054,66029.0,66028.0,2.03351969]
[1721772307855,0.01154,66029.0,66028.0,2.03351969]
[1721772308097,0.14994,66029.0,66028.0,0.71482626]
[1721772308391,0.14994,66029.0,66028.0,0.89404379]
[1721772308567,0.14994,66029.0,66028.0,1.1423637]
[1721772308720,0.14994,66029.0,66028.0,0.30224179]
[1721772308922,0.14994,66029.0,66028.0,0.15079179]
[1721772309358,0.14994,66029.0,66024.0,0.001921]
[1721772309359,0.151457,66025.0,66024.0,0.001921]
[1721772309559,0.289857,66025.0,66024.0,0.001921]
[1721772309929,0.18503,66025.0,66024.0,0.456301]
[1721772310079,0.18503,66025.0,66024.0,0.88503177]
[1721772310283,0.18503,66025.0,66024.0,0.81643168]
[1721772310284,0.04663,66025.0,66024.0,0.81643168]
[1721772310644,0.18503,66025.0,66024.0,0.27919177]
[1721772311028,0.18503,66025.0,66024.0,0.153381]
[1721772311198,0.18503,66025.0,66024.0,0.27918445]
[1721772311358,0.18503,66025.0,66024.0,0.12772445]
[1721772311560,0.336487,66025.0,66024.0,0.12772445]
[1721772311761,0.336487,66025.0,66024.0,0.001921]
[1721772311762,0.18503,66025.0,66024.0,0.001921]
[1721772312075,0.18503,66025.0,66024.0,0.011921]
[1721772312463,0.336487,66025.0,66024.0,0.014921]
[1721772312670,0.18503,66025.0,66024.0,0.014921]
[1721772312894,0.18503,66025.0,66024.0,0.004921]
[1721772312895,0.336487,66025.0,66024.0,0.004921]
[1721772313087,0.336487,66025.0,66024.0,0.001921]
[1721772313307,0.18503,66025.0,66024.0,0.008921]
[1721772313510,0.639402,66025.0,66024.0,0.009921]
[1721772313908,0.942317,66025.0,66024.0,0.009921]
[1721772314358,1.245232,66025.0,66024.0,0.009921]
[1721772314507,0.942317,66025.0,66024.0,0.009921]
[1721772314751,1.245232,66025.0,66024.0,0.009921]
[1721772314945,0.942317,66025.0,66024.0,0.009921]
[1721772315148,1.029617,66025.0,66024.0,0.009921]
[1721772315575,1.029617,66025.0,66024.0,0.002921]
[1721772315801,1.030617,66025.0,66024.0,0.002921]
[1721772316188,1.332532,66025.0,66024.0,0.002921]
[1721772316448,1.029617,66025.0,66024.0,0.002921]
[1721772316624,1.333532,66025.0,66024.0,0.002921]
[1721772316935,1.47285957,66025.0,66024.0,0.001921]
[1721772317174,1.53455191,66025.0,66024.0,0.002921]
[1721772317403,1.48455191,66025.0,66024.0,0.002921]
[1721772317668,1.53455191,66025.0,66024.0,0.002921]
[1721772318092,1.54299066,66025.0,66024.0,0.002921]
[1721772318297,1.53999066,66025.0,66024.0,0.001921]
[1721772318502,1.83346691,66025.0,66024.0,0.001921]
[1721772318709,1.83246691,66025.0,66024.0,0.001921]
[1721772319201,2.19086845,66025.0,66024.0,0.002921]
[1721772319435,2.19086845,66025.0,66012.0,0.000913]
[1721772319436,1.139895,66013.0,66012.0,0.000913]
[1721772319658,1.48334491,66013.0,66012.0,0.000913]
[1721772319827,1.63030756,66013.0,66012.0,0.000913]
[1721772320225,1.98327756,66013.0,66012.0,0.000913]
[1721772321250,1.98327756,66013.0,66012.0,0.001913]
[1721772321251,1.98627756,66013.0,66012.0,0.001913]
[1721772321882,2.08627756,66013.0,66012.0,0.001913]
[1721772322013,2.08627756,66013.0,66012.0,0.002913]
[1721772322014,2.08827756,66013.0,66012.0,0.002913]
[1721772322426,2.00097756,66013.0,66012.0,0.002913]
[1721772322628,1.89131491,66013.0,66012.0,0.002913]
[1721772322826,1.88631491,66013.0,66012.0,0.000913]
[1721772323026,1.88631491,66013.0,66012.0,0.002913]
[1721772323027,1.93931491,66013.0,66012.0,0.002913]
[1721772323232,2.08927756,66013.0,66012.0,0.002913]
[1721772323635,2.03927756,66013.0,66012.0,0.002913]
[1721772323835,2.08927756,66013.0,66012.0,0.002913]
[1721772324364,1.89231491,66013.0,66012.0,0.002913]
[1721772324949,1.94231491,66013.0,66012.0,0.002913]
[1721772332430,1.89231491,66013.0,66012.0,0.002913]
[1721772332681,1.94231491,66013.0,66012.0,0.002913]
[1721772333485,1.89231491,66013.0,66012.0,0.002913]
[1721772335160,1.94231491,66013.0,66012.0,0.002913]
[1721772335357,1.98138219,66013.0,66012.0,0.002913]
[1721772337895,1.98138219,66013.0,66012.0,1e-06]
[1721772337896,2.38435219,66013.0,66012.0,1e-06]
[1721772338045,0.757725,65987.0,65986.0,0.44093655]
[1721772338204,0.957055,65987.0,65986.0,0.44093655]
[1721772338426,0.957055,65987.0,65978.0,0.0612]
[1721772338427,0.19933,65987.0,65978.0,0.0612]
[1721772338833,0.0873,65984.0,65978.0,0.0612]
[1721772339103,0.151557,65982.0,65978.0,0.0612]
[1721772339389,0.04663,65981.0,65978.0,0.212765]
[1721772339680,0.303122,65980.0,65976.0,0.075]
[1721772339884,0.04663,65981.0,65976.0,0.075]
[1721772339885,0.04663,65979.0,65976.0,0.075]
[1721772340085,0.198193,65979.0,65976.0,0.075]
[1721772340422,0.198193,65979.0,65978.0,0.004]
[1721772340632,0.04663,65979.0,65978.0,0.004]
[1721772341012,0.04663,65979.0,65978.0,0.74391591]
[1721772341226,0.04663,65979.0,65978.0,0.26810082]
[1721772341430,0.198193,65979.0,65978.0,0.004]
[1721772341639,0.501319,65979.0,65978.0,0.004]
[1721772342042,0.891745,65979.0,65978.0,0.004]
[1721772342259,0.891745,65979.0,65971.0,0.0606]
[1721772342260,0.303142,65976.0,65971.0,0.0606]
[1721772342468,0.04663,65975.0,65972.0,0.12590647]
[1721772342667,0.198203,65975.0,65973.0,0.12590647]
[1721772342864,0.198203,65975.0,65971.0,0.0606]
[1721772342865,0.04663,65975.0,65974.0,0.52821242]
[1721772343337,0.04663,65975.0,65974.0,1.09546769]
[1721772343726,0.001,65976.0,65975.0,0.757862]
[1721772343898,0.001,65976.0,65975.0,0.27747827]
[1721772344530,0.001,65976.0,65975.0,0.58062327]
[1721772344737,0.151561,65980.0,65976.0,0.151568]
[1721772344906,0.151561,65980.0,65977.0,0.12590627]
[1721772345111,0.151561,65980.0,65976.0,0.151568]
[1721772345310,0.30311,65983.0,65977.0,0.27746769]
[1721772345311,0.151559,65981.0,65977.0,0.27746769]
[1721772345522,0.151559,65981.0,65978.0,0.12590069]
[1721772345717,0.151559,65981.0,65979.0,0.12590069]
[1721772345974,0.151559,65981.0,65977.0,0.151567]
[1721772346334,0.151559,65981.0,65978.0,0.12589861]
[1721772346537,0.151559,65981.0,65977.0,0.151567]
[1721772346538,0.151559,65981.0,65979.0,0.12590149]
[1721772346887,0.152559,65981.0,65980.0,0.12590149]
[1721772347061,0.455676,65981.0,65980.0,0.12590149]
[1721772347430,0.303136,65977.0,65971.0,0.151581]
[1721772347634,0.303133,65978.0,65972.0,0.12590416]
[1721772347957,0.151568,65977.0,65973.0,0.12590416]
[1721772348276,0.303133,65978.0,65974.0,0.12590416]
[1721772348484,0.151569,65977.0,65975.0,0.12590416]
[1721772348646,0.151569,65977.0,65976.0,0.12590416]
[1721772349189,0.152569,65977.0,65976.0,0.12590416]
[1721772349398,0.153569,65977.0,65976.0,0.12590416]
[1721772349607,0.151566,65978.0,65976.0,0.12590416]
[1721772349775,0.151566,65978.0,65974.0,0.151574]
[1721772349955,0.151566,65978.0,65975.0,0.12590433]
[1721772350163,0.151567,65978.0,65976.0,0.12590433]
[1721772350364,0.151567,65978.0,65977.0,0.12590433]
[1721772351425,0.454698,65978.0,65977.0,0.12590433]
[1721772351611,0.151567,65978.0,65977.0,0.12590433]
[1721772351821,0.152567,65978.0,65977.0,0.12590433]
[1721772352732,0.151567,65978.0,65977.0,0.12590433]
[1721772352952,0.455698,65978.0,65977.0,0.12590433]
[1721772353184,0.456698,65978.0,65977.0,0.12590433]
[1721772353392,0.153566,65978.0,65977.0,0.12590419]
[1721772353606,0.153566,65978.0,65977.0,0.17106902]
[1721772353822,0.153566,65978.0,65977.0,0.12590419]
[1721772354709,0.456697,65978.0,65977.0,0.5298519]
[1721772355302,0.456697,65978.0,65977.0,0.19365144]
[1721772355573,0.153566,65978.0,65977.0,0.46210584]
[1721772355791,0.153565,65978.0,65977.0,0.46210584]
[1721772356217,0.153565,65978.0,65977.0,0.52993602]
[1721772356436,0.002,65978.0,65977.0,0.61367284]
[1721772356645,0.002,65978.0,65977.0,0.36794501]
[1721772356854,0.002,65978.0,65977.0,0.99446708]
[1721772357076,0.0618,65995.0,65983.0,0.0832]
[1721772357286,0.0618,65995.0,65992.0,0.04522836]
[1721772357508,0.151518,65999.0,65994.0,0.21937054]
[1721772357726,0.151515,66000.0,65996.0,0.04524556]
[1721772357938,0.151515,66000.0,65996.0,0.19676956]
[1721772358165,0.46799594,66003.0,66002.0,0.15151]
[1721772358386,0.0618,66006.0,66002.0,0.04524127]
[1721772358387,0.151505,66005.0,66002.0,0.04524127]
[1721772358680,0.0618,66006.0,66004.0,0.04525995]
[1721772358880,0.151501,66006.0,66005.0,0.04525877]
[1721772359293,0.151503,66005.0,66004.0,0.04525877]
[1721772359723,0.151503,66005.0,66003.0,0.06791513]
[1721772359967,0.076,66012.0,66005.0,0.303006]
[1721772360174,0.151492,66010.0,66008.0,0.04526826]
[1721772360616,0.076,66012.0,66008.0,0.06790239]
[1721772360848,0.15149,66011.0,66010.0,0.0452784]
[1721772361688,0.15149,66011.0,66009.0,0.0452784]
[1721772362027,0.15149,66011.0,66010.0,0.0452784]
[1721772362431,0.15149,66011.0,66009.0,0.0452784]
[1721772362648,0.227487,66012.0,66010.0,0.005]
[1721772362852,0.076,66012.0,66010.0,0.008]
[1721772363468,0.151489,66011.0,66010.0,0.003]
[1721772363640,0.227488,66012.0,66010.0,0.003]
[1721772363849,0.06,66013.0,66011.0,0.302976]
[1721772364192,0.70087194,66017.0,66013.0,0.151484]
[1721772364419,0.0814,66017.0,66010.0,0.04529741]
[1721772364542,0.002794,66016.0,66011.0,0.302979]
[1721772364742,0.0814,66017.0,66014.0,0.151482]
[1721772365142,0.0814,66017.0,66013.0,0.302968]
[1721772365348,0.151471,66019.0,66014.0,0.151481]
[1721772365498,0.002,66017.0,66014.0,0.151481]
[1721772365910,0.002,66017.0,66015.0,0.15148]
[1721772366320,0.216469,66020.0,66016.0,0.151478]
[1721772366524,0.065,66020.0,66017.0,0.151476]
[1721772366750,0.004,66019.0,66018.0,0.151473]
[1721772367534,0.004,66019.0,66016.0,0.151478]
[1721772367727,0.004,66019.0,66017.0,0.151475]
[1721772367971,0.065,66020.0,66015.0,0.302959]
[1721772368179,0.004,66017.0,66016.0,0.302956]
[1721772368331,0.006,66017.0,66016.0,0.75739]
[1721772368534,0.002,66017.0,66016.0,0.75739]
[1721772368915,0.00083,66024.0,66009.0,0.37647642]
[1721772368916,0.00083,66024.0,66023.0,0.151462]
[1721772369088,0.00083,66024.0,66023.0,0.75731]
[1721772370615,0.00083,66024.0,66023.0,1.060234]
[1721772370802,0.00083,66024.0,66023.0,1.25725391]
[1721772370933,0.00083,66024.0,66023.0,1.66435022]
[1721772371143,0.00083,66024.0,66023.0,1.48722177]
[1721772371585,0.00083,66024.0,66023.0,1.36742622]
[1721772371808,0.00083,66024.0,66023.0,1.36542622]
[1721772372030,0.00183,66024.0,66023.0,1.34520083]
[1721772372235,0.00183,66024.0,66023.0,1.21940631]
[1721772372442,0.00283,66024.0,66023.0,1.22840631]
[1721772373145,0.00183,66024.0,66023.0,1.21940631]
[1721772373326,0.00183,66024.0,66023.0,0.91648231]
[1721772373644,0.00183,66024.0,66023.0,0.86231]
[1721772374390,0.00183,66024.0,66023.0,0.86631]
[1721772374597,0.00283,66024.0,66023.0,0.87131]
[1721772375001,0.00083,66024.0,66023.0,0.85731]
[1721772375300,0.00283,66024.0,66023.0,0.87131]
[1721772375650,0.00283,66024.0,66023.0,1.174234]
[1721772376055,0.00283,66024.0,66023.0,1.30002911]
[1721772376419,0.00183,66024.0,66023.0,1.29102911]
[1721772377115,0.00183,66024.0,66023.0,0.98810511]
[1721772377340,0.00183,66024.0,66023.0,1.13512502]
[1721772377543,0.00183,66024.0,66023.0,1.43804902]
[1721772377955,0.00083,66024.0,66023.0,1.43304902]
[1721772378227,0.00083,66024.0,66023.0,1.13012502]
[1721772378376,0.00083,66024.0,66023.0,1.14412502]
[1721772378377,0.00183,66024.0,66023.0,1.14412502]
[1721772378593,0.00283,66024.0,66023.0,1.44704902]
[1721772379302,0.00183,66024.0,66023.0,1.58214902]
[1721772379501,0.00183,66024.0,66023.0,1.57814902]
[1721772379883,0.00283,66024.0,66023.0,1.58714902]
[1721772380433,0.00283,66024.0,66023.0,1.44704902]
[1721772380627,0.15014,66029.0,66028.0,0.454351]
[1721772380905,0.15014,66029.0,66028.0,0.757252]
[1721772381320,0.15014,66029.0,66028.0,0.454351]
[1721772381457,0.15014,66029.0,66028.0,0.757252]
[1721772381868,0.01054,66029.0,66028.0,0.757252]
[1721772382491,0.01154,66029.0,66028.0,0.762252]
[1721772382691,0.01154,66029.0,66028.0,0.58514599]
[1721772382895,0.01154,66029.0,66028.0,0.88804699]
[1721772383695,0.01254,66029.0,66028.0,0.89704699]
[1721772384422,0.01254,66029.0,66028.0,0.89204699]
[1721772384986,0.01254,66029.0,66028.0,0.766252]
[1721772385564,0.01254,66029.0,66028.0,0.89204581]
[1721772386830,0.01254,66029.0,66028.0,0.766252]
[1721772391927,0.01254,66029.0,66028.0,1.27737291]
[1721772393476,0.01254,66029.0,66028.0,1.59607291]
[1721772393693,0.01254,66029.0,66028.0,1.72927291]
[1721772394103,0.01254,66029.0,66028.0,2.03217391]
[1721772395806,0.01254,66029.0,66028.0,2.13417391]
[1721772395996,0.01254,66029.0,66028.0,2.15517391]
[1721772396207,0.01254,66029.0,66028.0,2.20028154]
[1721772396449,0.00854,66036.0,66035.0,1.060041]
[1721772396648,0.00854,66036.0,66035.0,1.26123322]
[1721772397512,0.00954,66036.0,66035.0,1.26723322]
[1721772398122,0.00954,66036.0,66035.0,1.27223322]
[1721772398576,0.00954,66036.0,66035.0,1.96150222]
[1721772398792,0.00854,66036.0,66035.0,1.97850222]
[1721772398958,0.00954,66036.0,66035.0,2.02360985]
[1721772399174,0.01054,66036.0,66035.0,1.98750222]
[1721772400057,0.00954,66036.0,66035.0,1.98050222]
[1721772400261,0.00854,66036.0,66035.0,1.97350222]
[1721772400464,0.00954,66036.0,66035.0,1.98750222]
[1721772400839,0.00954,66036.0,66035.0,1.88750222]
[1721772401353,0.01054,66036.0,66035.0,1.90150222]
[1721772401560,0.00854,66036.0,66035.0,1.87350222]
[1721772401766,0.00954,66036.0,66035.0,1.83332991]
[1721772401966,0.01054,66036.0,66035.0,1.84732991]
[1721772403248,0.01054,66036.0,66035.0,1.95633917]
[1721772403999,0.01054,66036.0,66035.0,1.95833917]
[1721772406577,0.002,66049.0,66040.0,0.05]
[1721772406784,0.002,66049.0,66048.0,0.757025]
[1721772406989,0.002,66049.0,66048.0,1.56297733]
[1721772407574,0.00854,66056.0,66048.0,0.94145779]
[1721772407774,0.00854,66056.0,66054.0,0.11294504]
[1721772408014,0.00854,66056.0,66055.0,0.33581347]
[1721772408627,0.00854,66056.0,66055.0,0.42616959]
[1721772409237,0.00854,66056.0,66055.0,0.33581347]
[1721772409548,0.00854,66056.0,66055.0,0.33579548]
[1721772409783,0.00854,66056.0,66055.0,0.33679548]
[1721772409977,0.07494,66056.0,66055.0,0.33679548]
[1721772410222,0.07494,66056.0,66055.0,0.48818348]
[1721772410423,0.15184,66056.0,66055.0,0.79396048]
[1721772410740,0.15184,66056.0,66055.0,0.90397402]
[1721772410944,0.15184,66056.0,66055.0,0.90297402]
[1721772411149,0.15384,66056.0,66055.0,0.91897402]
[1721772411460,0.15384,66056.0,66055.0,1.04474395]
[1721772411801,0.15384,66056.0,66055.0,0.93171974]
[1721772412834,0.15384,66056.0,66055.0,0.93168769]
[1721772413775,0.15384,66056.0,66055.0,1.23446469]
[1721772414027,0.01054,66056.0,66055.0,1.23446469]
[1721772414426,0.01054,66056.0,66055.0,1.34751308]
[1721772415296,0.01054,66056.0,66055.0,2.0801616]
[1721772415532,0.01054,66056.0,66055.0,2.36636871]
[1721772415734,0.01054,66056.0,66055.0,2.91901921]
[1721772415897,0.01054,66056.0,66055.0,2.86212684]
[1721772416118,0.01054,66056.0,66055.0,1.60636111]
[1721772416338,0.00954,66056.0,66055.0,2.55019974]
[1721772416532,0.01054,66056.0,66055.0,2.66419974]
[1721772416742,0.01054,66056.0,66055.0,2.64409211]
[1721772417615,0.00954,66056.0,66055.0,2.63009211]
[1721772417809,0.00854,66056.0,66055.0,2.62309211]
[1721772418041,0.00954,66056.0,66055.0,2.65109211]
[1721772418239,0.00954,66056.0,66055.0,2.24831511]
[1721772418440,0.00954,66056.0,66055.0,2.27829908]
[1721772418646,0.00954,66056.0,66055.0,2.39122449]
[1721772418799,0.00954,66056.0,66055.0,1.88655366]
[1721772419207,0.00954,66056.0,66055.0,1.86397217]
[1721772419410,0.00954,66056.0,66055.0,1.33473891]
[1721772419581,0.00954,66056.0,66055.0,1.50565663]
[1721772419782,0.00954,66056.0,66055.0,1.4604752]
[1721772419991,0.00854,66056.0,66055.0,1.49165313]
[1721772420215,0.00854,66056.0,66055.0,1.4604752]
[1721772420554,0.00854,66056.0,66055.0,1.4464752]
[1721772420750,0.00854,66056.0,66055.0,1.1296982]
[1721772420955,0.07344,66056.0,66055.0,0.69390129]
[1721772421172,0.07344,66056.0,66055.0,0.70790129]
[1721772421373,0.07344,66056.0,66055.0,1.01067829]
[1721772421577,0.07344,66056.0,66055.0,0.70790129]
[1721772421855,0.15094,66056.0,66055.0,0.30512429]
[1721772422059,0.15094,66056.0,66055.0,0.91067829]
[1721772422676,0.15094,66056.0,66055.0,0.91068701]
[1721772422980,0.15094,66056.0,66055.0,0.89668701]
[1721772423372,0.15094,66056.0,66055.0,0.60291001]
[1721772423511,0.605099,66056.0,66055.0,0.14874501]
[1721772423714,0.15094,66056.0,66055.0,0.12574501]
[1721772424117,0.302326,66056.0,66055.0,0.14974501]
[1721772424333,0.15094,66056.0,66055.0,0.14974501]
[1721772424537,0.302326,66056.0,66055.0,0.13874501]
[1721772424739,0.302326,66056.0,66055.0,0.14674501]
[1721772425136,0.302326,66056.0,66055.0,0.13874501]
[1721772425353,0.302326,66056.0,66055.0,0.12574501]
[1721772425550,0.15094,66056.0,66055.0,0.12974501]
[1721772425758,0.15094,66056.0,66055.0,0.28113301]
[1721772425966,0.15094,66056.0,66055.0,0.28113851]
[1721772426864,0.15094,66056.0,66055.0,0.58391551]
[1721772427280,0.15094,66056.0,66055.0,0.59291551]
[1721772427486,0.15094,66056.0,66055.0,0.89569251]
[1721772427952,0.15094,66056.0,66055.0,0.88669251]
[1721772428173,0.15094,66056.0,66055.0,0.89269251]
[1721772428835,0.00854,66056.0,66055.0,1.34248942]
[1721772429232,0.00854,66056.0,66055.0,1.34248497]
[1721772430789,0.00854,66056.0,66055.0,1.03970797]
[1721772432401,0.00854,66056.0,66055.0,0.91396191]
[1721772432536,0.00854,66056.0,66055.0,1.03970773]
[1721772435814,0.00854,66056.0,66055.0,1.03970667]
[1721772437175,0.00854,66056.0,66055.0,1.15590667]
[1721772437377,0.00854,66056.0,66055.0,1.85258367]
[1721772437580,0.00854,66056.0,66055.0,1.97758367]
[1721772437952,0.00854,66056.0,66055.0,2.11716652]
[1721772438135,0.00854,66056.0,66055.0,1.87558367]
[1721772438330,0.00854,66056.0,66055.0,1.86558367]
[1721772438566,0.00854,66056.0,66055.0,1.87958367]
[1721772438915,0.00854,66056.0,66055.0,2.18236067]
[1721772439164,0.00854,66056.0,66055.0,1.87957326]
[1721772439311,0.00854,66056.0,66055.0,2.3610787]
[1721772439531,0.00854,66056.0,66055.0,2.24690123]
[1721772439730,0.00854,66056.0,66055.0,2.26090123]
[1721772439953,0.00854,66056.0,66055.0,2.32208461]
[1721772440182,0.00854,66056.0,66055.0,2.29408461]
[1721772440585,0.00854,66056.0,66055.0,2.2608972]
[1721772440824,0.00854,66056.0,66055.0,2.01930761]
[1721772441360,0.00854,66056.0,66055.0,2.20789945]
[1721772441565,0.00854,66056.0,66055.0,3.01430807]
[1721772441769,0.00854,66056.0,66055.0,2.67858373]
[1721772441968,0.00854,66056.0,66055.0,2.94639799]
[1721772442542,0.00854,66056.0,66055.0,2.94636356]
[1721772442982,0.00854,66056.0,66055.0,3.0369117]
[1721772443625,0.00854,66056.0,66055.0,2.94636356]
[1721772443824,0.00854,66056.0,66055.0,2.95544851]
[1721772444300,0.00854,66056.0,66055.0,3.04799665]
[1721772444537,0.00854,66056.0,66055.0,2.95744851]
[1721772445287,0.00854,66056.0,66055.0,3.05664977]
[1721772445443,0.00854,66056.0,66055.0,2.94344851]
[1721772445645,0.00854,66056.0,66055.0,2.72192752]
[1721772445853,0.00854,66056.0,66055.0,3.23219659]
[1721772446254,0.00854,66056.0,66055.0,3.2776281]
[1721772446514,0.00854,66056.0,66055.0,3.33698573]
[1721772446726,0.00854,66056.0,66055.0,3.3360281]
[1721772446946,0.00854,66062.0,66061.0,2.210995]
[1721772447102,0.00854,66062.0,66061.0,3.5453716]
[1721772447306,0.00854,66062.0,66061.0,3.24029074]
[1721772447505,0.00854,66062.0,66061.0,3.14029074]
[1721772447733,0.00854,66062.0,66061.0,3.24029074]
[1721772448070,0.00854,66062.0,66061.0,3.24229074]
[1721772448272,0.0021,66078.0,66077.0,1.059369]
[1721772448474,0.0021,66078.0,66077.0,1.33210422]
[1721772449097,0.0021,66078.0,66077.0,1.33208713]
[1721772449903,0.0021,66078.0,66077.0,1.34608713]
[1721772450182,0.0021,66078.0,66077.0,1.36008713]
[1721772450595,0.002,66089.0,66078.0,1.059352]
[1721772450852,0.004794,66089.0,66078.0,1.33207013]
[1721772451222,0.0606,66082.0,66078.0,1.33207013]
[1721772451835,0.002,66089.0,66078.0,1.38207013]
[1721772451836,0.0756,66085.0,66078.0,1.38207013]
[1721772452119,0.00854,66086.0,66078.0,2.04304213]
[1721772452293,0.00854,66086.0,66078.0,2.08847364]
[1721772452500,0.00854,66086.0,66078.0,2.13601877]
[1721772452905,0.00854,66086.0,66078.0,2.07447364]
[1721772453104,0.00854,66086.0,66078.0,2.04304213]
[1721772453262,0.00854,66086.0,66078.0,2.05604213]
[1721772453484,0.00854,66086.0,66078.0,2.04304213]
[1721772453852,0.00854,66086.0,66078.0,2.05704213]
[1721772454052,0.00854,66086.0,66078.0,2.08004213]
[1721772455409,0.00854,66086.0,66078.0,2.17301877]
[1721772455599,0.00854,66086.0,66078.0,2.17299781]
[1721772456647,0.00854,66086.0,66078.0,2.20612621]
[1721772456967,0.00854,66086.0,66078.0,2.17499781]
[1721772457183,0.00854,66086.0,66078.0,2.20612621]
[1721772457381,0.00854,66086.0,66078.0,2.21495508]
[1721772457672,0.00854,66086.0,66078.0,2.86846792]
[1721772457897,0.00854,66086.0,66078.0,3.42284027]
[1721772458123,0.00854,66086.0,66078.0,3.43684027]
[1721772458478,0.00854,66086.0,66079.0,1.97524311]
[1721772458686,0.00854,66086.0,66079.0,3.48579134]
[1721772458880,0.00854,66086.0,66079.0,3.29726523]
[1721772459079,0.00854,66086.0,66079.0,3.48575323]
[1721772459643,0.00854,66086.0,66085.0,1.81652]
[1721772459867,0.00854,66086.0,66085.0,3.08503643]
[1721772460278,0.00854,66086.0,66085.0,3.27352443]
[1721772460470,0.00854,66086.0,66085.0,2.83052861]
[1721772460676,0.00854,66086.0,66085.0,3.27151412]
[1721772460922,0.00854,66086.0,66085.0,3.27351412]
[1721772461119,0.00854,66086.0,66085.0,3.08503643]
[1721772461375,0.00854,66086.0,66085.0,3.19742563]
[1721772461708,0.00854,66086.0,66085.0,3.30144065]
[1721772461885,0.00854,66086.0,66085.0,3.11296296]
[1721772462112,0.00854,66086.0,66085.0,3.30142285]
[1721772462290,0.00854,66086.0,66085.0,3.11294516]
[1721772462487,0.00854,66086.0,66085.0,2.86294381]
[1721772462693,0.00854,66086.0,66085.0,1.5049172]
[1721772462895,0.00854,66086.0,66085.0,1.45991857]
[1721772463684,0.00854,66086.0,66085.0,1.15727857]
[1721772463685,0.14984,66086.0,66085.0,1.15727857]
[1721772464109,0.14984,66086.0,66085.0,1.14327857]
[1721772464329,0.14984,66086.0,66085.0,0.29097866]
[1721772464556,0.14984,66086.0,66085.0,1.04327857]
[1721772464844,0.14984,66086.0,66085.0,1.35991857]
[1721772465202,0.14984,66086.0,66085.0,1.34591857]
[1721772465400,0.14984,66086.0,66085.0,1.22025991]
[1721772465603,0.14984,66086.0,66085.0,1.34594163]
[1721772465804,0.14984,66086.0,66085.0,0.91761991]
[1721772466004,0.14984,66086.0,66085.0,0.7706]
[1721772466220,0.14984,66086.0,66085.0,0.16232]
[1721772466618,0.14984,66086.0,66085.0,0.46496]
[1721772466818,0.14984,66086.0,66085.0,0.47896]
[1721772467059,0.14984,66086.0,66085.0,0.46496]
[1721772467510,0.14984,66086.0,66085.0,0.011]
[1721772467840,0.14984,66086.0,66085.0,0.025]
[1721772468046,0.14984,66086.0,66085.0,0.17632]
[1721772468274,0.14984,66086.0,66085.0,0.7676]
[1721772468629,0.14984,66086.0,66085.0,0.7686]
[1721772469576,0.14984,66086.0,66085.0,0.89428699]
[1721772470028,0.14984,66086.0,66085.0,0.90528772]
[1721772470233,0.14984,66086.0,66085.0,0.7796]
[1721772470435,0.14984,66086.0,66085.0,0.90528839]
[1721772470842,0.14984,66086.0,66085.0,1.3549483]
[1721772471049,0.14984,66086.0,66085.0,1.4279483]
[1721772471050,0.00854,66086.0,66085.0,1.4279483]
[1721772471257,0.15204,66086.0,66085.0,0.90528839]
[1721772471458,0.15204,66086.0,66085.0,1.0523083]
[1721772471871,0.15204,66086.0,66085.0,0.92661991]
[1721772472082,0.15204,66086.0,66085.0,1.35494399]
[1721772473467,0.00854,66086.0,66085.0,1.35494399]
[1721772475203,0.00854,66086.0,66085.0,1.22925991]
[1721772475405,0.00854,66086.0,66085.0,1.35494213]
[1721772477432,0.00854,66086.0,66085.0,1.80758213]
[1721772477632,0.00854,66086.0,66085.0,1.90758213]
[1721772477835,0.00854,66086.0,66085.0,2.26358586]
[1721772478090,0.00854,66086.0,66085.0,2.59914209]
[1721772478453,0.00854,66086.0,66085.0,2.28295614]
[1721772478642,0.00854,66086.0,66085.0,2.59911442]
[1721772478841,0.00854,66086.0,66085.0,2.67820437]
[1721772479097,0.00854,66086.0,66085.0,2.66620437]
[1721772479250,0.00854,66086.0,66085.0,2.57411442]
[1721772479449,0.002,66089.0,66088.0,1.511817]
[1721772479649,0.002,66089.0,66088.0,2.49913499]
[1721772479921,0.002,66089.0,66088.0,2.06357876]
[1721772480121,0.002,66089.0,66088.0,1.99599519]
[1721772480402,0.002,66089.0,66088.0,2.34913032]
[1721772480626,0.002,66089.0,66088.0,2.02350432]
[1721772480809,0.002,66089.0,66088.0,1.43187422]
[1721772481026,0.002,66089.0,66088.0,1.44587422]
[1721772481225,0.002,66089.0,66088.0,1.45987422]
[1721772481582,0.002,66089.0,66088.0,1.14324822]
[1721772481786,0.002,66089.0,66088.0,1.00358491]
[1721772482010,0.002,66089.0,66088.0,1.14326408]
[1721772482791,0.002,66089.0,66088.0,1.15726408]
[1721772482995,0.002,66089.0,66088.0,1.50498826]
[1721772483234,0.002,66089.0,66088.0,1.45989008]